bitfinex/quotes_SOLUSD_20251119
["timestamp","ask_amount","ask_price","bid_price","bid_amount"]
[1763567968460,1.82,134.83,134.8,9.76824438]
[1763567968662,10.58083582,134.86,134.81,10.41824438]
[1763567968663,5.37896926,134.86,134.81,10.41824438]
[1763567968897,7.06546832,134.85,134.82,9.76824438]
[1763567969067,1.82,134.85,134.82,9.76824438]
[1763567969270,1.82,134.85,134.83,9.76824438]
[1763567969471,1.82,134.85,134.82,10.48824438]
[1763567969678,1.82,134.85,134.82,0.72]
[1763567969883,1.82,134.85,134.83,9.76824438]
[1763567970090,1.82,134.85,134.82,10.48824438]
[1763567970289,2.54,134.85,134.82,9.76824438]
[1763567970491,0.72,134.84,134.8,9.76824438]
[1763567970695,0.72,134.84,134.8,10.48824438]
[1763567971293,9.76824438,134.83,134.76,97.63038122]
[1763567971592,0.72,134.84,134.8,9.76824438]
[1763567973078,0.72,134.84,134.8,10.48824438]
[1763567973776,0.72,134.84,134.8,9.76824438]
[1763567974203,4.71896926,134.87,134.82,9.76824438]
[1763567974403,5.86186656,134.88,134.85,9.76824438]
[1763567974404,4.71896926,134.88,134.85,9.76824438]
[1763567974701,1.82,134.89,134.85,9.76824438]
[1763567974906,5.24474123,134.88,134.85,9.76824438]
[1763567975502,1.82,134.89,134.85,10.48824438]
[1763567975804,2.54,134.89,134.85,9.76824438]
[1763567976792,2.54,134.89,134.84,9.76824438]
[1763567976793,0.72,134.88,134.84,9.76824438]
[1763567977114,1.82,134.89,134.85,10.48824438]
[1763567977282,1.82,134.89,134.86,9.76824438]
[1763567977606,2.54,134.89,134.86,9.76824438]
[1763567977975,1.82,134.89,134.86,9.76824438]
[1763567978185,4.71896926,134.91,134.87,10.48824438]
[1763567978389,2.54,134.91,134.87,10.48824438]
[1763567978800,2.54,134.91,134.87,0.72]
[1763567978974,2.54,134.91,134.87,10.48824438]
[1763567979404,2.54,134.91,134.82,27.90978769]
[1763567979405,10.48824438,134.9,134.84,0.72]
[1763567979587,9.76824438,134.89,134.84,10.48824438]
[1763567979907,10.48824438,134.89,134.84,10.48824438]
[1763567980204,0.72,134.89,134.85,10.48824438]
[1763567980401,0.72,134.89,134.86,9.76824438]
[1763567981424,12.30824438,134.91,134.86,10.48824438]
[1763567981716,6.5319029,134.91,134.87,10.48824438]
[1763567981878,11.58824438,134.93,134.88,9.76824438]
[1763567982080,10.48824438,134.92,134.87,9.76824438]
[1763567982298,0.72,134.92,134.87,9.76824438]
[1763567982502,0.72,134.91,134.87,10.48824438]
[1763567982707,9.76824438,134.89,134.82,0.72]
[1763567982902,0.72,134.91,134.82,0.72]
[1763567982903,9.76824438,134.87,134.82,0.72]
[1763567983107,9.76824438,134.87,134.82,10.48824438]
[1763567983283,0.72,134.87,134.83,9.76824438]
[1763567983485,10.48824438,134.86,134.78,9.78882769]
[1763567983797,10.48824438,134.86,134.77,0.72]
[1763567983798,9.76824438,134.83,134.77,0.72]
[1763567983987,1.82,134.83,134.79,9.76824438]
[1763567984395,2.54,134.83,134.79,10.48824438]
[1763567985290,1.82,134.83,134.81,9.76824438]
[1763567985709,1.82,134.83,134.81,10.48824438]
[1763567986020,1.82,134.83,134.81,0.72]
[1763567986226,1.82,134.83,134.81,10.48824438]
[1763567986438,1.82,134.83,134.82,9.76824438]
[1763567986602,1.82,134.83,134.81,10.48824438]
[1763567986799,1.82,134.83,134.78,18.84096]
[1763567986999,1.82,134.83,134.8,9.76824438]
[1763567987195,0.72,134.82,134.79,9.76824438]
[1763567987394,2.54,134.83,134.79,0.72]
[1763567987600,2.54,134.83,134.79,10.48824438]
[1763567988013,1.82,134.83,134.8,10.48824438]
[1763567988513,1.82,134.83,134.81,10.48824438]
[1763567988838,1.82,134.83,134.82,0.72]
[1763567989508,1.82,134.83,134.81,9.76824438]
[1763567989840,1.82,134.83,134.82,10.46824438]
[1763567990139,0.72,134.86,134.82,0.7]
[1763567990314,0.72,134.86,134.82,10.46824438]
[1763567990830,0.72,134.86,134.82,9.76824438]
[1763567991218,9.76824438,134.85,134.8,10.46824438]
[1763567991415,9.76824438,134.84,134.79,27.88920438]
[1763567991615,10.47824438,134.85,134.8,9.76824438]
[1763567991934,0.71,134.85,134.81,9.76824438]
[1763567992115,0.71,134.85,134.81,10.46824438]
[1763567992311,0.71,134.85,134.81,9.76824438]
[1763567992516,0.71,134.85,134.81,10.46824438]
[1763567992718,7.24289162,134.88,134.83,9.76824438]
[1763567993044,2.53,134.91,134.86,9.76824438]
[1763567993261,2.53,134.91,134.84,0.7]
[1763567993551,1.82,134.91,134.88,9.76824438]
[1763567993747,1.82,134.91,134.89,9.76824438]
[1763567993935,0.71,134.9,134.84,0.7]
[1763567994129,0.71,134.9,134.86,9.76824438]
[1763567994447,0.71,134.9,134.84,0.7]
[1763567994750,1.82,134.91,134.84,8.116186]
[1763567995046,1.82,134.91,134.87,9.76824438]
[1763567995436,2.53,134.91,134.87,9.76824438]
[1763567995622,1.82,134.91,134.87,10.46824438]
[1763567995941,0.71,134.9,134.85,0.7]
[1763567996246,1.82,134.91,134.87,9.76824438]
[1763567996470,12.29824438,134.91,134.84,0.7]
[1763567996650,9.76824438,134.89,134.83,18.12096]
[1763567996952,10.47824438,134.9,134.85,9.76824438]
[1763567997127,0.71,134.9,134.86,9.76824438]
[1763567997328,0.71,134.9,134.83,18.12096]
[1763567997329,0.71,134.92,134.87,9.76824438]
[1763567997536,12.29824438,134.92,134.87,9.76824438]
[1763567997737,9.76824438,134.9,134.83,18.12096]
[1763567997939,5.94619649,134.91,134.85,9.76824438]
[1763567998140,10.47824438,134.9,134.84,18.12096]
[1763567998329,9.76824438,134.89,134.84,27.88920438]
[1763567998526,10.47824438,134.89,134.84,18.12096]
[1763567998752,0.71,134.88,134.85,9.76824438]
[1763567998958,9.76824438,134.91,134.85,9.76824438]
[1763567999148,2.53,134.92,134.86,0.7]
[1763567999356,0.71,134.91,134.86,0.7]
[1763567999655,9.76824438,134.9,134.84,0.7]
[1763567999954,10.47824438,134.89,134.84,10.46824438]
[1763568000154,10.47824438,134.89,134.84,72.76824438]
[1763568000574,10.47824438,134.89,134.79,18.54665609]
[1763568000575,27.90978769,134.91,134.75,62.3]
[1763568000885,14.99995646,134.88,134.83,9.76824438]
[1763568001038,14.99995646,134.88,134.8,18.12096]
[1763568001239,0.71,134.87,134.8,18.82096]
[1763568001455,10.47824438,134.87,134.81,0.7]
[1763568001677,9.76824438,134.86,134.8,18.12096]
[1763568001969,9.76824438,134.84,134.8,18.12096]
[1763568002176,10.47824438,134.85,134.8,27.88920438]
[1763568002339,0.71,134.89,134.81,0.7]
[1763568002658,9.76824438,134.86,134.8,0.7]
[1763568002862,10.47824438,134.88,134.82,9.76824438]
[1763568003059,10.47824438,134.88,134.77,27.90978769]
[1763568003060,1.82,134.87,134.83,9.76824438]
[1763568003363,9.76824438,134.84,134.78,18.82096]
[1763568003545,9.76824438,134.84,134.79,9.76824438]
[1763568003740,10.47824438,134.84,134.79,9.76824438]
[1763568003954,10.47824438,134.84,134.79,10.46824438]
[1763568004264,10.47824438,134.83,134.74,28.34245239]
[1763568004468,9.76824438,134.81,134.76,0.7]
[1763568004638,9.76824438,134.81,134.76,10.46824438]
[1763568004844,11.58824438,134.82,134.76,0.7]
[1763568005050,1.82,134.82,134.8,9.76824438]
[1763568005367,1.82,134.82,134.8,10.46824438]
[1763568005546,1.82,134.82,134.81,10.46824438]
[1763568005752,1.82,134.86,134.81,10.46824438]
[1763568005948,11.58824438,134.86,134.78,0.7]
[1763568006154,10.47824438,134.85,134.8,9.76824438]
[1763568006357,0.71,134.85,134.79,9.76824438]
[1763568006549,0.71,134.84,134.78,10.46824438]
[1763568006863,10.47824438,134.84,134.79,9.76824438]
[1763568007048,2.53,134.86,134.81,9.76824438]
[1763568007362,15.69885278,134.85,134.8,9.76824438]
[1763568007580,0.71,134.85,134.81,9.76824438]
[1763568007763,12.29824438,134.86,134.79,18.82096]
[1763568007969,2.53,134.86,134.82,9.76824438]
[1763568008178,0.71,134.89,134.85,9.76824438]
[1763568008372,1.82,134.89,134.86,9.76824438]
[1763568008559,1.82,134.89,134.87,9.76824438]
[1763568008757,1.82,134.89,134.86,9.76824438]
[1763568008983,1.82,134.89,134.8,35.75321937]
[1763568008984,9.76824438,134.87,134.8,10.48882769]
[1763568009168,1.82,134.89,134.86,9.76824438]
[1763568009493,1.82,134.89,134.81,18.82096]
[1763568009782,9.76824438,134.87,134.82,10.46824438]
[1763568010281,10.47824438,134.86,134.81,27.88920438]
[1763568010486,9.76824438,134.85,134.79,10.46824438]
[1763568010662,11.58824438,134.84,134.79,10.46824438]
[1763568010866,2.53,134.84,134.8,9.76824438]
[1763568011079,1.82,134.86,134.83,9.76824438]
[1763568011279,1.82,134.86,134.84,9.76824438]
[1763568011504,1.82,134.86,134.83,9.76824438]
[1763568011687,2.53,134.86,134.83,9.76824438]
[1763568011967,2.53,134.86,134.81,0.7]
[1763568011968,2.53,134.86,134.82,9.76824438]
[1763568012887,1.82,134.86,134.84,6.37083663]
[1763568013092,7.08083663,134.9,134.85,6.37083663]
[1763568013273,1.82,134.89,134.85,6.37083663]
[1763568013472,8.90083663,134.89,134.84,6.37083663]
[1763568013785,0.71,134.88,134.84,6.37083663]
[1763568013986,0.71,134.88,134.84,7.07083663]
[1763568014177,0.71,134.88,134.85,6.37083663]
[1763568014774,7.08083663,134.88,134.82,0.7]
[1763568014957,1.82,134.89,134.8,18.82096]
[1763568014958,7.08083663,134.87,134.8,18.82096]
[1763568015162,0.71,134.87,134.83,6.37083663]
[1763568015373,2.53,134.87,134.83,6.37083663]
[1763568015574,5.23240694,134.86,134.81,0.7]
[1763568015783,7.23956082,134.87,134.81,0.7]
[1763568015974,25.36052082,134.87,134.81,0.7]
[1763568016170,4.70961627,134.86,134.81,0.7]
[1763568016390,0.71,134.85,134.81,6.37083663]
[1763568016690,7.08083663,134.85,134.8,18.12096]
[1763568016893,0.71,134.84,134.79,6.37083663]
[1763568017065,7.08083663,134.84,134.79,6.37083663]
[1763568017266,0.71,134.84,134.8,25.19179663]
[1763568017492,0.71,134.84,134.8,6.37083663]
[1763568017690,0.71,134.84,134.8,7.07083663]
[1763568017886,1.82,134.85,134.8,7.07083663]
[1763568018089,8.90083663,134.85,134.8,0.7]
[1763568018296,7.08083663,134.84,134.78,0.7]
[1763568018497,1.82,134.85,134.77,6.37083663]
[1763568018498,6.37083663,134.82,134.77,6.37083663]
[1763568018690,7.08083663,134.83,134.77,18.12096]
[1763568018881,1.82,134.85,134.79,6.37083663]
[1763568018882,0.71,134.84,134.79,6.37083663]
[1763568019080,0.71,134.84,134.78,0.7]
[1763568019081,0.71,134.84,134.8,6.37083663]
[1763568019382,1.82,134.85,134.82,6.37083663]
[1763568019893,1.82,134.85,134.83,6.37083663]
[1763568020095,1.82,134.85,134.82,6.37083663]
[1763568020297,1.82,134.85,134.8,0.69]
[1763568020470,2.51,134.85,134.81,6.37083663]
[1763568020669,1.82,134.85,134.82,6.37083663]
[1763568021071,1.82,134.85,134.83,6.37083663]
[1763568021274,1.82,134.85,134.84,6.37083663]
[1763568021480,0.69,134.9,134.84,7.06083663]
[1763568021780,10.62812545,134.9,134.85,6.37083663]
[1763568021984,0.69,134.9,134.86,6.37083663]
[1763568022178,5.23183924,134.9,134.87,6.37083663]
[1763568022379,4.7073152,134.91,134.89,6.37083663]
[1763568022679,0.2,134.94,134.89,9.78882769]
[1763568022890,0.2,134.94,134.93,6.37083663]
[1763568023290,0.2,134.94,134.93,7.06083663]
[1763568024291,0.2,134.94,134.93,16.84966432]
[1763568024498,0.2,134.94,134.93,7.06083663]
[1763568025002,0.2,134.94,134.93,24.26091459]
[1763568027122,0.2,134.94,134.9,28.85885241]
[1763568027123,0.2,134.94,134.9,0.66]
[1763568027409,0.2,134.94,134.93,6.37083663]
[1763568028091,0.2,134.94,134.93,7.03083663]
[1763568028910,0.2,134.94,134.93,18.12096]
[1763568029114,0.88,134.94,134.88,0.66]
[1763568029407,0.2,134.94,134.91,6.37083663]
[1763568029611,0.2,134.94,134.89,10.44882769]
[1763568029796,0.2,134.94,134.91,6.37083663]
[1763568030284,0.88,134.94,134.89,9.78882769]
[1763568030486,6.37083663,134.93,134.86,0.66]
[1763568030690,6.37083663,134.93,134.89,6.37083663]
[1763568030691,0.68,134.93,134.89,6.37083663]
[1763568031221,6.37083663,134.92,134.84,0.66]
[1763568031532,0.68,134.93,134.89,6.37083663]
[1763568031702,2.02,134.94,134.91,6.37083663]
[1763568032226,0.68,134.93,134.89,6.37083663]
[1763568032526,2.02,134.94,134.89,0.66]
[1763568032690,2.02,134.94,134.9,6.37083663]
[1763568032691,0.68,134.93,134.9,6.37083663]
[1763568032887,0.68,134.93,134.89,6.37083663]
[1763568033122,7.05083663,134.93,134.88,24.49179663]
[1763568033293,0.68,134.93,134.89,6.37083663]
[1763568033494,2.02,134.94,134.89,6.37083663]
[1763568033686,7.05083663,134.92,134.87,6.37083663]
[1763568033998,0.68,134.92,134.85,6.37083663]
[1763568034210,6.37083663,134.9,134.85,6.37083663]
[1763568034398,6.37083663,134.9,134.85,24.49179663]
[1763568034593,7.05083663,134.89,134.81,0.66]
[1763568034832,2.5,134.88,134.84,6.37083663]
[1763568035011,2.5,134.88,134.85,6.37083663]
[1763568035331,1.82,134.88,134.85,6.37083663]
[1763568035496,2.5,134.88,134.85,6.37083663]
[1763568036498,0.68,134.87,134.83,0.66]
[1763568036698,2.5,134.88,134.85,6.37083663]
[1763568036919,0.68,134.9,134.87,6.37083663]
[1763568037120,2.5,134.9,134.86,6.37083663]
[1763568037308,2.5,134.9,134.85,6.37083663]
[1763568037500,0.68,134.89,134.86,6.37083663]
[1763568037701,1.82,134.9,134.83,7.4165854]
[1763568037702,1.82,134.9,134.87,6.37083663]
[1763568038002,1.82,134.9,134.88,6.37083663]
[1763568038223,2.5,134.9,134.88,6.37083663]
[1763568038716,1.82,134.9,134.88,6.37083663]
[1763568039029,1.82,134.92,134.89,6.37083663]
[1763568039213,0.2,134.94,134.91,6.37083663]
[1763568039415,0.2,134.94,134.93,6.37083663]
[1763568039609,0.2,134.94,134.93,16.81966432]
[1763568039822,0.2,134.94,134.93,6.37083663]
[1763568040306,0.2,134.94,134.93,7.03083663]
[1763568040501,0.2,134.94,134.93,16.81966432]
[1763568040700,0.2,134.94,134.93,34.94062432]
[1763568040900,0.2,134.94,134.93,24.49179663]
[1763568041498,0.2,134.94,134.93,25.15179663]
[1763568041713,0.2,134.94,134.93,42.35187459]
[1763568041907,0.2,134.99,134.97,9.78882769]
[1763568042145,0.2,135.0,134.99,9.78882769]
[1763568042311,0.2,135.0,134.99,16.15966432]
[1763568042511,0.2,135.0,134.99,24.22762046]
[1763568042923,0.2,135.0,134.96,0.66]
[1763568043123,0.88,135.0,134.95,9.78882769]
[1763568043337,0.2,135.0,134.99,6.37083663]
[1763568043541,0.2,135.0,134.98,18.12096]
[1763568043713,0.2,135.0,134.99,6.37083663]
[1763568044243,0.88,135.0,134.95,18.12096]
[1763568044412,0.88,135.0,134.96,6.37083663]
[1763568044619,0.68,134.99,134.94,6.37083663]
[1763568044815,6.37083663,134.98,134.9,9.78882769]
[1763568045146,6.37083663,134.96,134.9,6.37083663]
[1763568045516,0.68,134.95,134.91,6.37083663]
[1763568046015,0.68,134.95,134.87,0.66]
[1763568046226,0.68,134.95,134.92,6.37083663]
[1763568046639,0.68,134.95,134.94,6.37083663]
[1763568046817,0.68,134.97,134.94,6.37083663]
[1763568047021,0.88,135.0,134.96,6.37083663]
[1763568047225,0.88,135.0,134.97,6.37083663]
[1763568047562,0.88,135.0,134.95,18.12096]
[1763568047563,0.68,134.99,134.95,18.12096]
[1763568047881,0.68,134.99,134.97,6.37083663]
[1763568048032,0.68,134.99,134.95,24.49179663]
[1763568048213,0.68,134.99,134.93,6.37083663]
[1763568048413,24.49179663,134.95,134.88,6.37083663]
[1763568048613,6.37083663,134.93,134.81,7.41784734]
[1763568048916,8.87083663,134.94,134.88,6.37083663]
[1763568049132,0.68,134.93,134.88,6.37083663]
[1763568049673,0.68,134.93,134.89,6.37083663]
[1763568049836,0.68,134.93,134.9,6.37083663]
[1763568050037,0.69,134.96,134.92,6.37083663]
[1763568050330,0.69,134.96,134.94,6.37083663]
[1763568050761,2.51,134.99,134.95,6.37083663]
[1763568050967,0.69,134.98,134.95,6.37083663]
[1763568051736,0.69,134.98,134.92,18.12096]
[1763568052374,0.69,134.98,134.95,6.37083663]
[1763568052737,0.69,134.98,134.96,6.37083663]
[1763568052938,0.69,134.98,134.92,18.12096]
[1763568053161,0.69,134.98,134.93,6.37083663]
[1763568053464,0.69,134.98,134.96,6.37083663]
[1763568053660,1.82,134.99,134.93,9.78882769]
[1763568053841,0.69,134.98,134.92,18.12096]
[1763568054039,0.69,134.98,134.95,6.37083663]
[1763568054360,0.69,134.98,134.96,6.37083663]
[1763568054574,1.82,134.99,134.97,6.37083663]
[1763568054762,0.69,134.98,134.93,8.09105163]
[1763568054938,0.69,134.98,134.95,6.37083663]
[1763568055138,0.69,134.98,134.96,6.37083663]
[1763568055546,1.82,134.99,134.97,6.37083663]
[1763568055761,2.51,134.99,134.93,10.46882769]
[1763568055944,2.51,134.99,134.93,18.80096]
[1763568056271,2.51,134.99,134.96,6.37083663]
[1763568056449,2.51,134.99,134.93,18.80096]
[1763568056655,2.51,134.99,134.96,6.37083663]
[1763568056855,2.51,134.99,134.93,18.80096]
[1763568056856,1.82,134.99,134.93,18.80096]
[1763568057060,1.82,134.99,134.97,6.37083663]
[1763568057256,1.82,134.99,134.98,6.37083663]
[1763568057455,0.2,135.0,134.98,6.37083663]
[1763568057763,0.2,135.0,134.99,6.37083663]
[1763568058685,0.2,135.01,135.0,27.90978769]
[1763568058841,0.2,135.01,135.0,41.33146095]
[1763568059046,0.2,135.01,135.0,40.63681132]
[1763568059355,0.2,135.01,135.0,47.00764795]
[1763568060421,0.89,135.01,134.93,0.68]
[1763568060665,0.2,135.01,135.0,6.37083663]
[1763568060860,0.89,135.01,134.97,18.12096]
[1763568061063,0.69,135.0,134.98,6.37083663]
[1763568061359,0.69,135.0,134.99,6.37083663]
[1763568061934,0.2,135.01,134.95,26.21109326]
[1763568062140,0.2,135.01,135.0,6.37083663]
[1763568062578,0.2,135.01,135.0,7.05083663]
[1763568062780,0.2,135.01,134.98,18.12096]
[1763568062943,0.2,135.01,135.0,6.37083663]
[1763568063269,0.2,135.01,135.0,7.05083663]
[1763568063642,0.2,135.01,135.0,6.37083663]
[1763568064251,0.2,135.01,134.99,18.12096]
[1763568064453,0.2,135.01,135.0,6.37083663]
[1763568065544,0.2,135.01,135.0,24.24707172]
[1763568066268,0.2,135.01,135.0,30.61790835]
[1763568066469,0.2,135.01,135.0,16.83966432]
[1763568066638,0.2,135.01,135.0,6.37083663]
[1763568067169,0.2,135.01,135.0,32.57920403]
[1763568067350,0.2,135.01,135.0,48.73886835]
[1763568067742,0.2,135.01,135.0,17.87623509]
[1763568067942,0.2,135.01,135.0,30.61790835]
[1763568068353,0.2,135.03,135.02,18.12096]
[1763568068554,0.2,135.03,135.02,25.52727017]
[1763568068770,0.2,135.03,135.02,32.5781068]
[1763568069073,0.2,135.05,135.03,7.05083663]
[1763568069276,0.2,135.05,135.04,34.28062432]
[1763568069448,0.2,135.07,135.06,24.49179663]
[1763568069966,12.21494979,135.16,135.06,24.49179663]
[1763568069967,5.8842475,135.14,135.07,18.12096]
[1763568070186,5.8842475,135.14,135.13,6.37083663]
[1763568070346,0.69,135.14,135.13,6.37083663]
[1763568070546,0.69,135.14,135.12,6.37083663]
[1763568070765,0.69,135.14,135.05,18.12096]
[1763568070968,0.69,135.14,135.1,6.37083663]
[1763568071484,0.69,135.14,135.05,18.12096]
[1763568071771,0.69,135.14,135.05,18.80096]
[1763568071984,0.69,135.14,135.06,18.12096]
[1763568072160,0.69,135.14,135.12,6.37083663]
[1763568072476,8.19083663,135.13,135.0,25.56871868]
[1763568072686,6.37083663,135.1,135.04,6.37083663]
[1763568072858,11.60882769,135.13,135.05,9.73234966]
[1763568072859,9.73234966,135.11,135.05,9.73234966]
[1763568073176,9.73234966,135.1,135.04,9.73234966]
[1763568073485,5.36529052,135.11,135.04,9.73234966]
[1763568073671,9.73234966,135.1,135.04,9.73234966]
[1763568073852,9.73234966,135.09,135.03,18.12096]
[1763568074052,0.69,135.09,135.05,9.73234966]
[1763568074356,0.69,135.08,135.03,18.12096]
[1763568074687,0.69,135.08,135.06,9.73234966]
[1763568075046,0.69,135.08,135.05,27.85330966]
[1763568075467,1.82,135.07,135.05,27.85330966]
[1763568075890,9.78882769,135.12,135.06,9.73234966]
[1763568076047,12.24234966,135.11,135.06,9.73234966]
[1763568076246,9.73234966,135.09,135.02,9.78882769]
[1763568076570,10.42234966,135.1,135.05,9.73234966]
[1763568076775,0.69,135.09,135.03,18.12096]
[1763568077086,9.73234966,135.08,135.03,27.85330966]
[1763568077298,10.42234966,135.09,135.04,9.73234966]
[1763568077449,2.51,135.08,135.03,18.12096]
[1763568077650,2.51,135.08,135.03,25.52652686]
[1763568077950,2.51,135.1,135.07,9.73234966]
[1763568078171,1.82,135.11,135.09,9.73234966]
[1763568078447,0.69,135.1,135.09,9.73234966]
[1763568078644,0.69,135.1,135.08,9.73234966]
[1763568078873,0.69,135.1,135.04,9.78882769]
[1763568079084,0.69,135.1,135.07,27.85330966]
[1763568079280,0.69,135.1,135.07,18.12096]
[1763568079589,0.69,135.1,135.07,9.73234966]
[1763568079949,1.82,135.09,135.08,9.73234966]
[1763568080157,2.52,135.09,135.07,9.73234966]
[1763568080479,0.7,135.08,135.06,27.85330966]
[1763568080785,0.2,135.08,135.05,9.73234966]
[1763568080988,1.82,135.09,135.05,9.73234966]
[1763568081286,1.82,135.09,135.06,9.73234966]
[1763568081452,1.82,135.09,135.05,27.85330966]
[1763568081646,11.55234966,135.09,135.05,18.12096]
[1763568081984,9.73234966,135.06,134.99,9.78882769]
[1763568082181,9.73234966,135.08,135.03,9.73234966]
[1763568082352,1.82,135.07,135.03,9.73234966]
[1763568082553,5.84411316,135.13,135.06,9.73234966]
[1763568082856,20.64096,135.12,135.07,9.73234966]
[1763568083056,1.82,135.11,135.07,9.73234966]
[1763568083372,9.73234966,135.1,135.05,9.73234966]
[1763568083575,9.73234966,135.09,135.03,18.12096]
[1763568083758,0.7,135.09,135.05,9.73234966]
[1763568084083,0.7,135.08,135.05,9.73234966]
[1763568084553,0.7,135.08,135.03,18.12096]
[1763568084750,0.7,135.08,135.05,9.73234966]
[1763568084946,1.82,135.07,135.05,9.73234966]
[1763568085374,0.68,135.06,135.04,9.73234966]
[1763568085577,1.82,135.07,135.05,9.73234966]
[1763568085875,7.83980248,135.15,135.04,0.66]
[1763568085876,0.68,135.09,135.06,9.73234966]
[1763568086075,1.82,135.08,135.07,9.73234966]
[1763568086869,0.68,135.1,135.07,9.73234966]
[1763568087182,0.68,135.1,135.08,9.73234966]
[1763568087372,1.82,135.11,135.09,9.73234966]
[1763568087564,0.68,135.12,135.05,18.12096]
[1763568087772,1.82,135.11,134.99,0.66]
[1763568088064,9.73234966,135.08,134.99,0.66]
[1763568088261,9.73234966,135.08,135.03,9.73234966]
[1763568088462,0.68,135.07,135.04,9.73234966]
[1763568088783,0.68,135.09,135.05,9.73234966]
[1763568088959,1.82,135.08,135.05,9.73234966]
[1763568089467,2.5,135.08,135.06,9.73234966]
[1763568089670,1.82,135.07,135.05,9.73234966]
[1763568090058,1.82,135.07,135.06,9.73234966]
[1763568090754,4.66405283,135.11,135.06,0.66]
[1763568091086,4.66405283,135.11,135.05,18.12096]
[1763568091087,0.68,135.1,135.05,18.12096]
[1763568091253,0.68,135.1,135.07,9.73234966]
[1763568091585,10.41234966,135.1,135.05,27.85330966]
[1763568091955,0.68,135.09,135.06,9.73234966]
[1763568092160,0.68,135.09,135.07,9.73234966]
[1763568093049,1.82,135.11,135.07,9.73234966]
[1763568093255,0.68,135.11,135.1,9.73234966]
[1763568093485,1.82,135.11,135.1,9.73234966]
[1763568093782,0.68,135.17,135.1,18.78096]
[1763568093980,0.68,135.17,135.1,18.12096]
[1763568093981,2.5,135.16,135.1,18.12096]
[1763568094279,14.98141338,135.15,135.06,18.12096]
[1763568094472,14.92493535,135.14,135.09,9.73234966]
[1763568094676,15.08319418,135.14,135.09,9.73234966]
[1763568094856,5.86829545,135.13,135.04,18.12096]
[1763568095056,9.78882769,135.12,135.05,9.73234966]
[1763568095249,9.73234966,135.1,135.05,9.73234966]
[1763568095478,9.73234966,135.07,135.02,9.73234966]
[1763568095654,1.82,135.06,135.02,9.73234966]
[1763568095853,2.5,135.06,135.02,9.73234966]
[1763568096054,0.68,135.05,134.95,22.7004466]
[1763568096280,10.41234966,135.05,134.96,0.66]
[1763568096584,10.41234966,135.05,135.0,9.73234966]
[1763568096753,0.68,135.04,134.97,9.78882769]
[1763568096954,0.68,135.04,135.0,9.73234966]
[1763568097455,1.82,135.03,134.99,9.73234966]
[1763568097879,0.68,135.02,134.99,9.73234966]
[1763568098188,0.68,135.03,135.0,9.73234966]
[1763568098377,5.35084452,135.06,135.02,9.73234966]
[1763568098572,1.82,135.05,135.03,9.73234966]
[1763568098771,5.35084452,135.06,135.03,9.73234966]
[1763568098980,2.5,135.05,135.03,9.73234966]
[1763568099159,2.5,135.05,135.02,9.73234966]
[1763568099484,1.82,135.05,135.04,9.73234966]
[1763568099681,5.84411316,135.11,135.04,9.73234966]
[1763568099682,0.68,135.09,135.04,9.73234966]
[1763568099983,1.82,135.09,135.07,9.73234966]
[1763568100365,0.68,135.09,135.06,9.73234966]
[1763568100681,4.67919973,135.1,135.04,9.73234966]
[1763568100682,2.5,135.08,135.04,9.73234966]
[1763568101084,0.68,135.07,135.05,9.73234966]
[1763568101286,5.35919973,135.1,135.06,9.73234966]
[1763568101468,2.5,135.09,135.06,9.73234966]
[1763568101688,2.5,135.09,135.02,9.78882769]
[1763568101869,2.5,135.09,135.06,9.73234966]
[1763568102063,1.82,135.08,135.06,9.73234966]
[1763568102262,0.68,135.09,135.06,9.73234966]